Cogmind - Beta 13 @@@ ROGUE MODE // 2024.04.17 @ 23:25:44 Player: Not Alex Result: Destroyed by S-27 Virus with Autogun Performance ------------- Evolutions (5) 2500 Regions Visited (9) 1800 Robots Destroyed (29) 145 Value Destroyed (882) 882 Prototype IDs (2) 40 Alien Tech Used (0) 0 Bonus (66) 66 TOTAL SCORE: 5433 Bonus ------- High Alert Combat Kills 66 Cogmind --------- Core Integrity 0/1000 Matter 141/300 Energy 91/100 System Corruption 0% Temperature Cool (0) Movement Core (150) Ox2 Location -5/Factory Parts ------- > --- POWER (2) -------- (None) > --- PROPULSION (6) --- (None) > --- UTILITY (5) ------ Advanced Targeting Computer > --- WEAPON (4) ------- Magnetic Acceleration Cannon > --- INVENTORY (5) ---- Huge Storage Unit Advanced Weight Redist. System Visual Processing Unit Improved Sensor Array Peak State ------------ > --- POWER ------------ Improved Ion Engine > --- PROPULSION ------- Improved Hover Unit Improved Hover Unit > --- UTILITY ---------- Advanced Weight Redist. System Improved Trap Scanner Advanced Targeting Computer System Shield System Restoration Module > --- WEAPON ----------- Light Assault Rifle Enhanced Gauss Cannon > --- INVENTORY -------- Huge Storage Unit Advanced Weight Redist. System Visual Processing Unit Improved Sensor Array [Rating: 31] Favorites ----------- Power Ion Engine Engine Ion Engine Power Core Light Nuclear Core Propulsion Flight Unit Treads Light Treads Hover Unit Improved Hover Unit Flight Unit Flight Unit Utility Advanced Weight Redist. System Device Advanced Weight Redist. System Storage Small Storage Unit Processor Targeting Computer Hackware System Shield Weapon Light Assault Rifle Ballistic Gun Light Assault Rifle Ballistic Cannon Enhanced Gauss Cannon Launcher Precision Grenade Launcher Build | -11 -10 -10 -9 -9 -8 -8 -7 -6 -5 ------- Run | Yrd Mat Min Mat Min Mat Sto Fac Fac Fac Slots Evolved 10 | . . . 2 . 2 . 2 2 2 Power 1 | . . . . . 1 . . . . Propulsion 4 | . . . 1 . 1 . . 1 1 Utility 3 | . . . 1 . . . 2 . . Weapon 2 | . . . . . . . . 1 1 Parts Attached 40 | 6 1 2 4 . 1 4 10 4 8 Power 5 | 1 . . . . . . 2 1 1 Engine 4 | 1 . . . . . . 1 1 1 Core 1 | . . . . . . . 1 . . Reactor . | . . . . . . . . . . Propulsion 12 | 2 . 2 2 . 1 . 2 1 2 Treads 3 | 2 . . . . . . 1 . . Leg . | . . . . . . . . . . Wheel . | . . . . . . . . . . Hover 3 | . . . . . . . . 1 2 Flight 6 | . . 2 2 . 1 . 1 . . Utility 14 | 1 1 . 1 . . 2 4 2 3 Device 7 | . . . 1 . . 2 1 . 3 Storage 2 | 1 . . . . . . . 1 . Processor 4 | . 1 . . . . . 2 1 . Hackware 1 | . . . . . . . 1 . . Protection . | . . . . . . . . . . Artifact . | . . . . . . . . . . Weapon 9 | 2 . . 1 . . 2 2 . 2 Energy Gun . | . . . . . . . . . . Energy Cannon . | . . . . . . . . . . Ballistic Gun 5 | 2 . . 1 . . 1 1 . . Ballistic Cannon 2 | . . . . . . . . . 2 Launcher 2 | . . . . . . 1 1 . . Special Weapon . | . . . . . . . . . . Impact Weapon . | . . . . . . . . . . Slashing Weapon . | . . . . . . . . . . Piercing Weapon . | . . . . . . . . . . Special Melee Weapon . | . . . . . . . . . . Unidentified Prototypes 2 | . . . . . . 1 1 . . Parts Lost 20 | . . . . . 2 . 5 4 9 Power 2 | . . . . . . . . 1 1 Propulsion 8 | . . . . . 2 . 2 2 2 Utility 6 | . . . . . . . 2 . 4 Weapon 4 | . . . . . . . 1 1 2 Highest Loss Streak 6 | . . . . . 2 . 3 3 6 To Critical Strikes . | . . . . . . . . . . Average Slot Usage (%) 65 | . 97 93 81 88 69 57 67 52 37 Engine 7 | . 14 14 11 11 9 9 4 2 2 Treads 5 | . 28 15 . . . . . . . Hover 1 | . . . . . . . . 5 2 Flight 9 | . . 12 28 33 28 18 13 3 . Device 8 | . . . 8 11 7 9 14 6 13 Storage 2 | . 14 7 . . . . . . . Processor 10 | . 11 14 11 11 9 9 9 12 6 Hackware 2 | . . . . . . . 4 6 3 Ballistic Gun 13 | . 28 28 22 22 16 10 7 6 3 Launcher 1 | . . . . . . 1 7 4 . Naked Turns . | . . . . . . . . . . Heaviest Build 16 | 12 12 12 10 10 10 14 16 14 14 Greatest Support 40 | 40 40 40 12 12 16 17 29 19 23 Greatest Overweight (x) 4 | . . . . . . . . . 4 Average Overweight (x) . | . . . . . . . . . . Largest Inventory Capacity 25 | 8 8 8 5 5 5 5 5 25 5 Average Capacity 5 | 7 8 6 5 5 5 5 5 5 5 Most Carried 8 | 5 3 8 5 5 5 5 5 5 5 Average Carried 4 | . 2 4 4 5 4 4 4 4 4 Final Capacity 8 | 8 8 5 5 5 5 5 5 5 5 Final Carried 5 | . 3 5 5 5 5 4 5 4 4 Class Distribution -------------------- 97% | Mutant Dominant Class ---------------- Mutant | -10/Materials Mutant | -10/Mines Mutant | -9/Materials Mutant | -9/Mines Mutant | -8/Materials Mutant | -8/Storage Mutant | -7/Factory Mutant | -6/Factory Mutant | -5/Factory Resources | -11 -10 -10 -9 -9 -8 -8 -7 -6 -5 ----------- Run | Yrd Mat Min Mat Min Mat Sto Fac Fac Fac Matter Collected 878 | 238 . 43 . . 104 . 399 . 94 Remotely . | . . . . . . . . . . Salvage Created 723 | . . 43 . . 120 . 477 . 83 Parts 42 | . . 7 . . 5 . 24 . 6 Haulers Intercepted . | . . . . . . . . . . Recyclers Shooed 1 | . . . . . . . 1 . . Parts Field Recycled . | . . . . . . . . . . Retrieved Matter . | . . . . . . . . . . Parts Self-Destructed . | . . . . . . . . . . Prevented . | . . . . . . . . . . Kills | -11 -10 -10 -9 -9 -8 -8 -7 -6 -5 ------- Run | Yrd Mat Min Mat Min Mat Sto Fac Fac Fac Combat Hostiles Destroyed 20 | . . 3 . . 2 . 13 . 2 Guns 8 | . . 3 . . 2 . 2 . 1 Cannons 1 | . . . . . . . . . 1 AOE 11 | . . . . . . . 11 . . Classes Destroyed 9 | . . 1 . . 2 . 4 . 2 Worker 2 | . . . . . . . 2 . . Builder 1 | . . . . . . . 1 . . Recycler 3 | . . . . . . . 3 . . Operator 1 | . . . . . 1 . . . . Watcher 2 | . . . . . . . 1 . 1 Swarmer 10 | . . 3 . . . . 7 . . Grunt 8 | . . . . . 2 . 6 . . Hunter 1 | . . . . . . . . . 1 Programmer 1 | . . . . . . . . . 1 Best Kill Streak 11 | . . 3 . . 3 . 11 . 1 Combat Bots Only 6 | . . 3 . . 2 . 6 . 1 Max Kills in Single Turn 4 | . . 1 . . 1 . 4 . 1 Gunslinging . | . . . . . . . . . . Exploded 3 | . . . . . . . 3 . . Melee . | . . . . . . . . . . Uniques/NPCs Destroyed . | . . . . . . . . . . Combat | -11 -10 -10 -9 -9 -8 -8 -7 -6 -5 -------- Run | Yrd Mat Min Mat Min Mat Sto Fac Fac Fac Hostile Shots Fired 266 | . . 12 8 . 23 3 32 48 140 Missed 98 | . . 4 3 . 9 2 12 23 45 Damage Taken 2851 | . . 64 71 . 224 14 481 463 1534 Core 1432 | . . 10 27 . 45 14 166 160 1010 Absorbed by Shields 22 | . . . . . . . . 22 . Core Remaining (%) 89 | 100 . 96 . 93 . 89 76 81 . Volleys Fired 75 | . 1 5 2 . 14 1 21 4 27 Largest 2 | . 2 2 2 . 2 1 2 2 2 Hottest 77 | . 40 40 43 . 43 23 56 56 77 Shots Fired 132 | . 2 10 4 . 28 1 38 5 44 Gun 91 | . 2 10 4 . 28 1 21 4 21 Cannon 23 | . . . . . . . . . 23 Launcher 18 | . . . . . . . 17 1 . Special . | . . . . . . . . . . Kinetic 114 | . 2 10 4 . 28 1 21 4 44 Thermal . | . . . . . . . . . . Explosive 18 | . . . . . . . 17 1 . Electromagnetic . | . . . . . . . . . . Robot Hit Streak 8 | . . 8 3 . 5 . 5 7 6 Robot Miss Streak 4 | . 2 4 1 . 3 . 2 1 3 Penetration Max . | . . . . . . . . . . Secondary Targets 1 | . . . . . 1 . . . . Max Gunslinging Chain 1 | . . . . . 1 . . . . Shots Hit Robots 74 | . . 8 3 . 18 . 12 4 29 Core Hits 61 | . . 5 . . 9 . 34 2 11 Critical Kills . | . . . . . . . . . . Critical Parts Destroyed . | . . . . . . . . . . Critical Strikes 2 | . . . . . . . . . 2 Blast 2 | . . . . . . . . . 2 Melee Attacks . | . . . . . . . . . . Impact . | . . . . . . . . . . Slashing . | . . . . . . . . . . Piercing . | . . . . . . . . . . Sneak Attacks . | . . . . . . . . . . Combat Hostiles . | . . . . . . . . . . Follow-up Attacks . | . . . . . . . . . . Damage Inflicted 2764 | . . 75 36 . 193 . 1790 68 602 Guns 502 | . . 75 36 . 193 . 90 18 90 Cannons 512 | . . . . . . . . . 512 Explosions 1750 | . . . . . . . 1700 50 . Melee . | . . . . . . . . . . Ramming . | . . . . . . . . . . Kinetic 1014 | . . 75 36 . 193 . 90 18 602 Thermal 100 | . . . . . . . 100 . . Explosive 1650 | . . . . . . . 1600 50 . Electromagnetic . | . . . . . . . . . . Impact . | . . . . . . . . . . Slashing . | . . . . . . . . . . Piercing . | . . . . . . . . . . Highest Corruption 1 | . . . . . . 1 1 . . Average Corruption 1 | . . . . . . 1 1 . . Corruption Purged . | . . . . . . . . . . Corruption Blocked . | . . . . . . . . . . Overload Shots . | . . . . . . . . . . Overflow Damage 153 | . . . . . . . 118 . 35 Projectiles 35 | . . . . . . . . . 35 Explosions 118 | . . . . . . . 118 . . Melee . | . . . . . . . . . . Knockbacks 8 | . . . . . . . . . 8 Impact . | . . . . . . . . . . Kinetic 7 | . . . . . . . . . 7 Secondary 1 | . . . . . . . . . 1 Self-Inflicted Damage 145 | . . . . . . . 145 . . Shots 3 | . . . . . . . 3 . . Rammed . | . . . . . . . . . . Targets Rammed . | . . . . . . . . . . Kicked . | . . . . . . . . . . Crushed . | . . . . . . . . . . Highest Temperature 25 | . . 6 11 . 25 . 19 10 . Average Temperature 7 | . . 5 9 . 8 . 5 10 . Received Heat Transfer 462 | . . . 18 . 162 9 63 132 78 Siege Activations . | . . . . . . . . . . Robots Corrupted . | . . . . . . . . . . Combat Hostiles . | . . . . . . . . . . Parts Fried . | . . . . . . . . . . Impact Corruptions . | . . . . . . . . . . Robots Melted . | . . . . . . . . . . Combat Hostiles . | . . . . . . . . . . Parts Melted . | . . . . . . . . . . Heat Transferred 50 | . . . . . . . 50 . . Parts Sabotaged . | . . . . . . . . . . Parts Stolen . | . . . . . . . . . . Parts Stripped . | . . . . . . . . . . Power Chain Reactions . | . . . . . . . . . . Alert | -11 -10 -10 -9 -9 -8 -8 -7 -6 -5 ------- Run | Yrd Mat Min Mat Min Mat Sto Fac Fac Fac Peak Influence 620 | . 15 75 164 63 64 101 620 395 290 Initial 298 | . . 5 29 63 24 26 45 298 188 Average 157 | . 3 46 76 63 40 70 242 336 220 Maximum Alert Level 2 | . . . . . . . 2 1 1 Low Security (%) 63 | 100 100 100 100 100 100 100 58 . 36 Level 1 33 | . . . . . . . 30 100 63 Level 2 2 | . . . . . . . 11 . . Level 3 . | . . . . . . . . . . Level 4 . | . . . . . . . . . . Level 5 . | . . . . . . . . . . High Security . | . . . . . . . . . . Max Security . | . . . . . . . . . . Squads Dispatched 10 | . 1 . . . 1 1 3 1 3 Investigation 2 | . 1 . . . . . 1 . . Extermination 1 | . . . . . . . . . 1 Reinforcement 7 | . . . . . 1 1 2 1 2 Assault . | . . . . . . . . . . Garrison . | . . . . . . . . . . Intercept . | . . . . . . . . . . Searches Triggered . | . . . . . . . . . . Construction Impeded 2 | . . . . . . . 1 . 1 Haulers Reinforced . | . . . . . . . . . . Active Scanning Responses . | . . . . . . . . . . Cargo Convoy Interrupts . | . . . . . . . . . . Stealth | -11 -10 -10 -9 -9 -8 -8 -7 -6 -5 --------- Run | Yrd Mat Min Mat Min Mat Sto Fac Fac Fac Distress Signals 5 | . . . 2 . 1 . . . 2 Communications Jammed . | . . . . . . . . . . Distress Signals . | . . . . . . . . . . Times Spotted 80 | . 1 5 11 . 5 8 18 14 18 Peak Tracking Total 16 | . 1 3 16 . 3 8 5 9 14 Tactical Retreats 9 | . . . 2 . . . 2 3 2 Traps | -11 -10 -10 -9 -9 -8 -8 -7 -6 -5 ------- Run | Yrd Mat Min Mat Min Mat Sto Fac Fac Fac Traps Triggered 5 | . 1 . . . . 1 1 1 1 Indirectly 1 | . . . . . . . 1 . . Trap Hack Attempts . | . . . . . . . . . . Triggered . | . . . . . . . . . . Disarmed . | . . . . . . . . . . Reprogrammed . | . . . . . . . . . . Reused . | . . . . . . . . . . Traps Extracted . | . . . . . . . . . . Installed . | . . . . . . . . . . Triggered . | . . . . . . . . . . Machines | -11 -10 -10 -9 -9 -8 -8 -7 -6 -5 ---------- Run | Yrd Mat Min Mat Min Mat Sto Fac Fac Fac Machines Disabled 6 | . . . . . . . 6 . . Max in Single Turn 2 | . . . . . . . 2 . . Machines Repaired . | . . . . . . . . . . Machines Dismantled . | . . . . . . . . . . Machines Sabotaged . | . . . . . . . . . . Overloaded Fab Kills . | . . . . . . . . . . Hacking | -11 -10 -10 -9 -9 -8 -8 -7 -6 -5 --------- Run | Yrd Mat Min Mat Min Mat Sto Fac Fac Fac Machines Accessed . | . . . . . . . . . . Terminals . | . . . . . . . . . . Fabricators . | . . . . . . . . . . Repair Stations . | . . . . . . . . . . Recycling Units . | . . . . . . . . . . Scanalyzers . | . . . . . . . . . . Garrison Access . | . . . . . . . . . . Total Hacks . | . . . . . . . . . . Successful . | . . . . . . . . . . Failed . | . . . . . . . . . . Catastrophic . | . . . . . . . . . . Database Lockouts . | . . . . . . . . . . Manual . | . . . . . . . . . . Terminals . | . . . . . . . . . . Fabricators . | . . . . . . . . . . Repair Stations . | . . . . . . . . . . Recycling Units . | . . . . . . . . . . Scanalyzers . | . . . . . . . . . . Garrison Access . | . . . . . . . . . . Terminal Hacks . | . . . . . . . . . . Fabricator Hacks . | . . . . . . . . . . Repair Station Hacks . | . . . . . . . . . . Recycling Unit Hacks . | . . . . . . . . . . Scanalyzer . | . . . . . . . . . . Garrison Access Hacks . | . . . . . . . . . . Unauthorized Hacks . | . . . . . . . . . . Terminals . | . . . . . . . . . . Fabricators . | . . . . . . . . . . Repair Stations . | . . . . . . . . . . Recycling Units . | . . . . . . . . . . Scanalyzers . | . . . . . . . . . . Garrison Access . | . . . . . . . . . . Data Cores Recovered . | . . . . . . . . . . Used . | . . . . . . . . . . Hacking Detections . | . . . . . . . . . . Full Trace Events . | . . . . . . . . . . Feedback Events . | . . . . . . . . . . Feedback Blocked . | . . . . . . . . . . Robot Schematics Acquired . | . . . . . . . . . . Robots Built . | . . . . . . . . . . Authchips . | . . . . . . . . . . Time . | . . . . . . . . . . Total Robot Build Rating . | . . . . . . . . . . Part Schematics Acquired . | . . . . . . . . . . Parts Built . | . . . . . . . . . . Authchips . | . . . . . . . . . . Time . | . . . . . . . . . . Total Part Build Rating . | . . . . . . . . . . Parts Repaired . | . . . . . . . . . . Time . | . . . . . . . . . . Parts Recycled . | . . . . . . . . . . Recycled Matter . | . . . . . . . . . . Retrieved Matter . | . . . . . . . . . . Retrieved Components . | . . . . . . . . . . Parts Scanalyzed . | . . . . . . . . . . Part Schematics Acquired . | . . . . . . . . . . Parts Damaged . | . . . . . . . . . . Bothacking | -11 -10 -10 -9 -9 -8 -8 -7 -6 -5 ------------ Run | Yrd Mat Min Mat Min Mat Sto Fac Fac Fac Used RIF Installer . | . . . . . . . . . . Robots Hacked . | . . . . . . . . . . Non-combat . | . . . . . . . . . . Combat . | . . . . . . . . . . Robot Hacks Applied . | . . . . . . . . . . Relay Couplers Released . | . . . . . . . . . . Fabnet Peak Effective % . | . . . . . . . . . . Robots Rewired . | . . . . . . . . . . Allies Hacked . | . . . . . . . . . . Hacks Repelled . | . . . . . . . . . . Allies | -11 -10 -10 -9 -9 -8 -8 -7 -6 -5 -------- Run | Yrd Mat Min Mat Min Mat Sto Fac Fac Fac Total Allies . | . . . . . . . . . . Largest Group . | . . . . . . . . . . Highest-Rated Group . | . . . . . . . . . . Highest-Rated Ally . | . . . . . . . . . . Total Orders . | . . . . . . . . . . Ally Attacks . | . . . . . . . . . . Total Damage . | . . . . . . . . . . Kills . | . . . . . . . . . . Allies Corrupted . | . . . . . . . . . . Allies Melted . | . . . . . . . . . . Intel | -11 -10 -10 -9 -9 -8 -8 -7 -6 -5 ------- Run | Yrd Mat Min Mat Min Mat Sto Fac Fac Fac Robot Analysis Total . | . . . . . . . . . . Derelict Logs Recovered 2 | . . 2 . . . . . . . Drone Launches . | . . . . . . . . . . Drone Recoveries . | . . . . . . . . . . Exploration | -11 -10 -10 -9 -9 -8 -8 -7 -6 -5 ------------- Run | Yrd Mat Min Mat Min Mat Sto Fac Fac Fac Turns Passed 1319 | 51 156 172 56 11 85 58 246 178 306 Spaces Moved 1819 | 34 92 242 120 31 129 121 447 255 348 Core 333 | 13 . . . . . . . 20 300 Treads 173 | 21 92 48 . . . . 12 . . Legs . | . . . . . . . . . . Wheels . | . . . . . . . . . . Hover 251 | . . . . . . . . 203 48 Flight 1062 | . . 194 120 31 129 121 435 32 . Fastest Speed 31 | 50 160 37 34 34 31 37 34 40 50 Average Speed 54 | 117 160 61 35 34 33 37 37 56 56 Slowest Speed 250 | 160 160 160 37 34 37 37 160 60 250 Overloaded Moves . | . . . . . . . . . . Propulsion Burnouts . | . . . . . . . . . . Robots Hopped 5 | . . 1 . . . 1 3 . . Cave-ins Triggered 1 | . . . . . . . 1 . . Exploration Rate (%) 19 | 3 24 59 18 9 15 35 17 9 9 Regions Visited 9 Branch Regions 3 Pre-discovered Areas . | . . . . . . . . . . Known Exits Taken . | . . . . . . . . . . Unknown Exits Taken 9 | 1 1 1 1 1 1 1 1 1 . Scrap Searched 1 | . . 1 . . . . . . . Spaces Dug . | . . . . . . . . . . Terrain Destroyed 139 | . . . . . . . 123 6 10 Melee . | . . . . . . . . . . Projectile 10 | . . . . . . . . . 10 AOE 129 | . . . . . . . 123 6 . Terrain Rammed . | . . . . . . . . . . Walls Destroyed . | . . . . . . . . . . Machines Disabled . | . . . . . . . . . . Actions | -11 -10 -10 -9 -9 -8 -8 -7 -6 -5 --------- Run | Yrd Mat Min Mat Min Mat Sto Fac Fac Fac Total 2022 | 45 99 257 129 30 146 130 486 284 416 Wait 45 | . 2 3 . . . 5 . 11 24 Move 1800 | 33 91 239 119 30 128 118 440 254 348 Hop 5 | . . 1 . . . 1 3 . . Pick Up 29 | 6 4 3 1 . 1 . 5 2 7 Fast Attach 12 | . . . 2 . . 3 4 1 2 Attach 26 | 6 1 2 . . 1 1 6 3 6 Detach 6 | . . 2 . . . . 3 1 . Swap 2 | . . . 2 . . . . . . Drop 15 | . . 2 3 . 2 1 4 1 2 Fire 75 | . 1 5 2 . 14 1 21 4 27 Melee . | . . . . . . . . . . Ram . | . . . . . . . . . . Kick . | . . . . . . . . . . Crush . | . . . . . . . . . . Escape Stasis 7 | . . . . . . . . 7 . Rewire . | . . . . . . . . . . Trap . | . . . . . . . . . . Miscellaneous . | . . . . . . . . . . Route ------- -11/Scrapyard -10/Materials -10/Mines -9/Materials -9/Mines -8/Materials -8/Storage -7/Factory -6/Factory -5/Factory History --------- Turn | Location | Event 11 | -11/Scrapyard | Discovered new exit (range 15) 52 | -11/Scrapyard | Entered Materials 179 | -10/Materials | Discovered new exit (range 14) 208 | -10/Materials | Entered Mines 311 | -10/Mines | Learned Materials security intel 326 | -10/Mines | Build established: Mutant 365 | -10/Mines | Discovered new exit (range 8) 370 | -10/Mines | Learned 2 Materials zone layouts 380 | -10/Mines | Entered Materials 380 | -9/Materials | Evolved 2 slots: Propulsion x1, Utility x1 432 | -9/Materials | Discovered new exit (range 11) 436 | -9/Materials | Entered Mines 444 | -9/Mines | Discovered new exit (range 5) 447 | -9/Mines | Entered Materials 447 | -8/Materials | Evolved 2 slots: Power x1, Propulsion x1 449 | -8/Materials | Discovered new exit (range 14) 532 | -8/Materials | Entered Storage 584 | -8/Storage | Discovered new exit (range 15) 590 | -8/Storage | Entered Factory 590 | -7/Factory | Evolved 2 slots: Utility x2 807 | -7/Factory | Discovered new exit (range 10) 833 | -7/Factory | Crushed by falling debris 836 | -7/Factory | Entered another Factory area 836 | -6/Factory | Evolved 2 slots: Propulsion x1, Weapon x1 864 | -6/Factory | Lost 3 parts (1n2u) 987 | -6/Factory | Lost 3 parts (1p1n1w) 1001 | -6/Factory | Discovered new exit (range 5) 1014 | -6/Factory | Entered another Factory area 1014 | -5/Factory | Evolved 2 slots: Propulsion x1, Weapon x1 1247 | -5/Factory | Lost 3 parts (1p2n) 1289 | -5/Factory | Core integrity fell below 50% 1307 | -5/Factory | Core integrity fell below 20% 1320 | -5/Factory | Destroyed by S-27 Virus with Autogun Last Messages --------------- Penetrated by Slug. Enh. Gauss Cannon destroyed. Slug penetrates Wall. Penetrated by Slug. System Restoration Module destroyed. Acquired 4 matter. Acquired 16 matter. Acquired 6 matter. Slug penetrates Wall. Penetrated by Slug. Slug penetrates Wall. Penetrated by Slug. O-16 Technician sends out distress signal. O-16 Technician: "IFF HANDSHAKE FAILED. SECURING TERMINAL." Adv. Weight Redist. System destroyed. ALERT: Hostiles spotted, dispatching reinforcements to Terminal F013. Imp. Trap Scanner destroyed. Acquired Magnetic Acceleration Cannon. Map ----- +----------------------------------------------------+ | ?????????????????????????????????????????????????? | | ?????????????????????????????????????????????????? | | ?????????????????????????????????????????????????? | | ?????????????????????????????????????????????????? | | ?????????????????????????????????????????????????? | | ??????????????????? ???????????????????????????? | | ????############### ???????????????????????????? | | ????# "??????????????????????????? | | ????# "?? "??????????????????????? | | ????# "?? "??????????????????????? | | ????# ?? "?? "??????????????????????? | | ????# ????? """ ""?????????????????????? | | ????# #???????# ? ???????????????????? | | ##### #???????# "" "" ???????????????????? | | #???????# "" "" #?????????????????? | | #??????## """ """ #?????????????????? | | #??????+ """ """ #?????????????????? | | #???????# """ """ #?????????????????? | | #???????# #?????????????????? | | #???????# "" #?????????????????? | | ######### "" #?????????????????? | | s s """ """ #?????????????????? | | %s "Y """ #?????????????????? | | s """ """ +?????????????????? | | #?????????????????? | | @ #?????????????????? | | ######+#########################?????????????????? | | ?????????????????????????????????????????????????? | | ?????????????????????????????????????????????????? | | ?????????????????????????????????????????????????? | | ?????????????????????????????????????????????????? | | ?????????????????????????????????????????????????? | | ?????????????????????????????????????????????????? | | ?????????????????????????????????????????????????? | | ?????????????????????????????????????????????????? | | ?????????????????????????????????????????????????? | | ?????????????????????????????????????????????????? | | ?????????????????????????????????????????????????? | | ?????????????????????????????????????????????????? | | ?????????????????????????????????????????????????? | | ?????????????????????????????????????????????????? | | ?????????????????????????????????????????????????? | | ?????????????????????????????????????????????????? | | ?????????????????????????????????????????????????? | | ?????????????????????????????????????????????????? | | ?????????????????????????????????????????????????? | | ?????????????????????????????????????????????????? | | ?????????????????????????????????????????????????? | | ?????????????????????????????????????????????????? | | ?????????????????????????????????????????????????? | +----------------------------------------------------+ Best States ------------- Heat Dissipation 44 Energy Generation 14 Energy Capacity 265 Matter Stores 300 Matter Capacity 300 Sight Range 16 Terrain Scan Range 14 Terrain Scan Density 10 Additional Mass Support 9 Evasion (%) 63 Targeting Accuracy 8 Target Analysis 5 Recoil Reduction 2 Defensive Hacking 10 Item Schematics ----------------- None Robot Schematics ------------------ None Fabricated ------------ Nothing Alien Tech Used ----------------- None Achievements -------------- None Challenges ------------ None Game ------ Seed PropulsionChipTrap Manual? 0 Play Time 00:26:31 Cumulative 8.7 hours Start 2024.04.17 @ 23:02:44 End 2024.04.17 @ 23:25:44 Sessions 1 Manual Loads 0 Difficulty Rogue Special Mode None Game No. 23 Rogue 12 Adventurer 11 Explorer 0 Win Type - Total 0 Types 0/0/0/0/0/0/0/0/0 Lore% 4 Gallery% 24 Achievement% 15 Wizard Run 0 Options --------- Layout 1 ASCII 0 Keyboard 0 Movement Mouse Keybinds 0 Fullscreen 1 Font 32/Smallcaps Map View 50x35 Zoom Use 0% Tactical HUD 0 Map Filters NONE Filters NONE Steam 1 RUN: 3dc6f6bb-b96d-40f7-88cb-614c946a10d2